[Event "January 2 Late 2024"]
[Site "https://www.chess.com"]
[Date "2024.01.02"]
[Round "3"]
[White "Plotnikov, Pavel"]
[Black "Aghasiyev, Kamal"]
[Result "1-0"]
[Board "99"]
[TimeControl "180+1"]
[WhiteFideId "4170342"]
[BlackFideId "13402854"]
[WhiteElo "2458"]
[BlackElo "2654"]
[WhiteTeam "RUS"]
[BlackTeam "AZE"]
[WhiteClock "0:00:20"]
[BlackClock "0:00:00"]

1. e4 {[%clk 0:02:59]}  e5 {[%clk 0:02:56]} 2. Nf3 {[%clk 0:02:59]}  Nc6 {[%clk 0:02:55]} 3. Nc3 {[%clk 0:02:59]}  Nf6 {[%clk 0:02:55]} 4. Be2 {[%clk 0:02:58]}  Bb4 {[%clk 0:02:44]} 5. Nd5 {[%clk 0:02:57]}  Nxe4 {[%clk 0:02:41]} 6. Nxb4 {[%clk 0:02:40]}  Nxb4 {[%clk 0:02:41]} 7. d3 {[%clk 0:02:39]}  Nf6 {[%clk 0:02:39]} 8. Nxe5 {[%clk 0:02:39]}  O-O {[%clk 0:02:39]} 9. a3 {[%clk 0:02:35]}  Nbd5 {[%clk 0:02:15]} 10. c4 {[%clk 0:02:34]}  Ne7 {[%clk 0:02:15]} 11. d4 {[%clk 0:02:32]}  d6 {[%clk 0:02:12]} 12. Nf3 {[%clk 0:02:31]}  Ng6 {[%clk 0:02:09]} 13. O-O {[%clk 0:02:24]}  Re8 {[%clk 0:02:07]} 14. d5 {[%clk 0:02:17]}  Ne4 {[%clk 0:01:46]} 15. Nd4 {[%clk 0:02:12]}  a5 {[%clk 0:01:44]} 16. Bf3 {[%clk 0:02:05]}  Nc5 {[%clk 0:01:40]} 17. Rb1 {[%clk 0:01:49]}  a4 {[%clk 0:01:39]} 18. Bd2 {[%clk 0:01:46]}  Nh4 {[%clk 0:01:09]} 19. Bc3 {[%clk 0:01:44]}  Qg5 {[%clk 0:01:06]} 20. Qd2 {[%clk 0:01:17]}  Qg6 {[%clk 0:00:57]} 21. Qf4 {[%clk 0:01:11]}  Nxf3+ {[%clk 0:00:48]} 22. Qxf3 {[%clk 0:01:05]}  Bg4 {[%clk 0:00:37]} 23. Qg3 {[%clk 0:01:02]}  Ne4 {[%clk 0:00:34]} 24. Qd3 {[%clk 0:00:59]}  Bd7 {[%clk 0:00:26]} 25. Rfe1 {[%clk 0:00:55]}  Nc5 {[%clk 0:00:22]} 26. Qxg6 {[%clk 0:00:50]}  hxg6 {[%clk 0:00:22]} 27. f3 {[%clk 0:00:48]}  f6 {[%clk 0:00:21]} 28. g4 {[%clk 0:00:41]}  Kf7 {[%clk 0:00:20]} 29. Rbd1 {[%clk 0:00:37]}  g5 {[%clk 0:00:17]} 30. Bb4 {[%clk 0:00:34]}  b6 {[%clk 0:00:16]} 31. Kf2 {[%clk 0:00:27]}  Rxe1 {[%clk 0:00:15]} 32. Bxe1 {[%clk 0:00:27]}  Rh8 {[%clk 0:00:13]} 33. Kg2 {[%clk 0:00:25]}  Re8 {[%clk 0:00:13]} 34. Bc3 {[%clk 0:00:23]}  Re3 {[%clk 0:00:12]} 35. Re1 {[%clk 0:00:20]}  Rxe1 {[%clk 0:00:11]} 36. Bxe1 {[%clk 0:00:21]}  Nd3 {[%clk 0:00:10]} 37. Bc3 {[%clk 0:00:21]}  Ne5 {[%clk 0:00:10]} 38. Nb5 {[%clk 0:00:21]}  Bxb5 {[%clk 0:00:08]} 39. cxb5 {[%clk 0:00:22]}  Nc4 {[%clk 0:00:08]} 40. Kf2 {[%clk 0:00:21]}  Ke7 {[%clk 0:00:07]} 41. Ke2 {[%clk 0:00:21]}  Ne5 {[%clk 0:00:04]} 42. Ke3 {[%clk 0:00:20]}  Nd7 {[%clk 0:00:03]} 43. f4 {[%clk 0:00:19]}  gxf4+ {[%clk 0:00:03]} 44. Kxf4 {[%clk 0:00:20]}  g6 {[%clk 0:00:04]} 45. h4 {[%clk 0:00:20]}  Kf7 {[%clk 0:00:04]} 46. h5 {[%clk 0:00:20]}  gxh5 {[%clk 0:00:04]} 47. gxh5 {[%clk 0:00:21]}  Nf8 {[%clk 0:00:04]} 48. Kf5 {[%clk 0:00:21]}  Nh7 {[%clk 0:00:04]} 49. h6 {[%clk 0:00:21]}  Nf8 {[%clk 0:00:00]} 50. Bxf6 {[%clk 0:00:20]} 1-0

[Event "January 2 Late 2024"]
[Site "https://www.chess.com"]
[Date "2024.01.02"]
[Round "3"]
[White "Niedbala, Bartlomiej"]
[Black "Sztokbant, Bernardo Vainzoff"]
[Result "0-1"]
[Board "100"]
[TimeControl "180+1"]
[WhiteFideId "21834008"]
[BlackFideId "2115956"]
[WhiteElo "2653"]
[BlackElo "2456"]
[WhiteTeam "POL"]
[BlackTeam "BRA"]
[WhiteClock "0:00:13"]
[BlackClock "0:00:04"]

1. e4 {[%clk 0:03:00]}  c5 {[%clk 0:02:53]} 2. Nf3 {[%clk 0:03:01]}  e6 {[%clk 0:02:53]} 3. d4 {[%clk 0:03:01]}  cxd4 {[%clk 0:02:54]} 4. Nxd4 {[%clk 0:03:02]}  Nc6 {[%clk 0:02:54]} 5. Nc3 {[%clk 0:03:02]}  Qc7 {[%clk 0:02:55]} 6. h4 {[%clk 0:02:55]}  a6 {[%clk 0:02:54]} 7. h5 {[%clk 0:02:52]}  Nf6 {[%clk 0:02:52]} 8. Be3 {[%clk 0:02:33]}  h6 {[%clk 0:02:51]} 9. Be2 {[%clk 0:02:28]}  Bb4 {[%clk 0:02:51]} 10. f3 {[%clk 0:02:09]}  d5 {[%clk 0:02:48]} 11. Nxc6 {[%clk 0:01:52]}  bxc6 {[%clk 0:02:36]} 12. Rh4 {[%clk 0:01:47]}  dxe4 {[%clk 0:01:58]} 13. Kf2 {[%clk 0:01:24]}  Bd6 {[%clk 0:01:54]} 14. Nxe4 {[%clk 0:01:17]}  Nxe4+ {[%clk 0:01:51]} 15. Rxe4 {[%clk 0:01:18]}  O-O {[%clk 0:01:43]} 16. Rg4 {[%clk 0:01:17]}  e5 {[%clk 0:01:40]} 17. Rc4 {[%clk 0:01:10]}  Be6 {[%clk 0:01:38]} 18. Rc3 {[%clk 0:01:10]}  Rab8 {[%clk 0:01:21]} 19. b3 {[%clk 0:01:06]}  e4 {[%clk 0:00:51]} 20. Rb1 {[%clk 0:00:42]}  Bb4 {[%clk 0:00:41]} 21. Rc5 {[%clk 0:00:36]}  Rfd8 {[%clk 0:00:35]} 22. Qc1 {[%clk 0:00:35]}  Bxc5 {[%clk 0:00:34]} 23. Bxc5 {[%clk 0:00:36]}  Qh2 {[%clk 0:00:25]} 24. Qe3 {[%clk 0:00:32]}  Qxh5 {[%clk 0:00:19]} 25. fxe4 {[%clk 0:00:30]}  Qg5 {[%clk 0:00:17]} 26. Qxg5 {[%clk 0:00:21]}  hxg5 {[%clk 0:00:18]} 27. Be3 {[%clk 0:00:20]}  f6 {[%clk 0:00:17]} 28. a4 {[%clk 0:00:19]}  a5 {[%clk 0:00:16]} 29. Rh1 {[%clk 0:00:19]}  Kf7 {[%clk 0:00:15]} 30. Bh5+ {[%clk 0:00:19]}  g6 {[%clk 0:00:13]} 31. Be2 {[%clk 0:00:20]}  Rh8 {[%clk 0:00:14]} 32. Rf1 {[%clk 0:00:20]}  Rbc8 {[%clk 0:00:09]} 33. Kg3 {[%clk 0:00:20]}  c5 {[%clk 0:00:09]} 34. Bxg5 {[%clk 0:00:20]}  f5 {[%clk 0:00:08]} 35. exf5 {[%clk 0:00:21]}  gxf5 {[%clk 0:00:08]} 36. Kf2 {[%clk 0:00:15]}  c4 {[%clk 0:00:07]} 37. Bd2 {[%clk 0:00:10]}  cxb3 {[%clk 0:00:06]} 38. cxb3 {[%clk 0:00:11]}  Bxb3 {[%clk 0:00:05]} 39. Bxa5 {[%clk 0:00:12]}  Rc2 {[%clk 0:00:03]} 40. Re1 {[%clk 0:00:04]}  Re8 {[%clk 0:00:03]} 41. Kf3 {[%clk 0:00:05]}  Bd5+ {[%clk 0:00:02]} 42. Kf4 {[%clk 0:00:05]}  Rcxe2 {[%clk 0:00:02]} 43. Rb1 {[%clk 0:00:05]}  Rf2+ {[%clk 0:00:02]} 44. Kg5 {[%clk 0:00:03]}  Rxg2+ {[%clk 0:00:03]} 45. Kf4 {[%clk 0:00:04]}  Re4+ {[%clk 0:00:03]} 46. Kxf5 {[%clk 0:00:04]}  Rf2+ {[%clk 0:00:03]} 47. Kg5 {[%clk 0:00:04]}  Re5+ {[%clk 0:00:03]} 48. Kg4 {[%clk 0:00:05]}  Be6+ {[%clk 0:00:03]} 49. Kg3 {[%clk 0:00:05]}  Rfe2 {[%clk 0:00:03]} 50. Rb7+ {[%clk 0:00:06]}  Kg6 {[%clk 0:00:03]} 51. Bc3 {[%clk 0:00:06]}  R2e3+ {[%clk 0:00:03]} 52. Kf2 {[%clk 0:00:07]}  Rxc3 {[%clk 0:00:04]} 53. Rb6 {[%clk 0:00:08]}  Rc2+ {[%clk 0:00:04]} 54. Kf3 {[%clk 0:00:09]}  Kf5 {[%clk 0:00:04]} 55. Rb4 {[%clk 0:00:09]}  Rc3+ {[%clk 0:00:03]} 56. Kf2 {[%clk 0:00:09]}  Rc4 {[%clk 0:00:04]} 57. Rb6 {[%clk 0:00:10]}  Rxa4 {[%clk 0:00:04]} 58. Rb8 {[%clk 0:00:11]}  Bd5 {[%clk 0:00:04]} 59. Kg3 {[%clk 0:00:11]}  Re3+ {[%clk 0:00:04]} 60. Kf2 {[%clk 0:00:11]}  Rf3+ {[%clk 0:00:04]} 61. Ke2 {[%clk 0:00:11]}  Ra2+ {[%clk 0:00:04]} 62. Ke1 {[%clk 0:00:12]}  Re3+ {[%clk 0:00:04]} 63. Kd1 {[%clk 0:00:12]}  Bf3+ {[%clk 0:00:04]} 64. Kc1 {[%clk 0:00:13]}  Re1# {[%clk 0:00:04]} 0-1

[Event "January 2 Late 2024"]
[Site "https://www.chess.com"]
[Date "2024.01.02"]
[Round "3"]
[White "Mirzoev, Azer"]
[Black "chucksterf10"]
[Result "1-0"]
[Board "102"]
[TimeControl "180+1"]
[WhiteFideId "13400304"]
[WhiteElo "2649"]
[BlackElo "2447"]
[WhiteTeam "AZE"]
[WhiteClock "0:00:53"]
[BlackClock "0:00:00"]

1. c4 {[%clk 0:03:00]}  b6 {[%clk 0:02:57]} 2. Nc3 {[%clk 0:03:00]}  Bb7 {[%clk 0:02:57]} 3. e4 {[%clk 0:03:01]}  e5 {[%clk 0:02:58]} 4. d3 {[%clk 0:03:01]}  Nf6 {[%clk 0:02:52]} 5. g3 {[%clk 0:03:01]}  h5 {[%clk 0:02:50]} 6. Nf3 {[%clk 0:03:00]}  Nc6 {[%clk 0:02:46]} 7. Bg2 {[%clk 0:03:00]}  Bc5 {[%clk 0:02:47]} 8. h3 {[%clk 0:03:00]}  d6 {[%clk 0:02:47]} 9. O-O {[%clk 0:02:58]}  Qd7 {[%clk 0:02:43]} 10. Nd5 {[%clk 0:02:53]}  Nxd5 {[%clk 0:02:42]} 11. cxd5 {[%clk 0:02:51]}  Nd4 {[%clk 0:02:43]} 12. Nxd4 {[%clk 0:02:51]}  Bxd4 {[%clk 0:02:43]} 13. Be3 {[%clk 0:02:38]}  Bxb2 {[%clk 0:02:40]} 14. Rb1 {[%clk 0:02:37]}  Bd4 {[%clk 0:02:20]} 15. Bxd4 {[%clk 0:02:36]}  exd4 {[%clk 0:02:21]} 16. Rb4 {[%clk 0:02:24]}  h4 {[%clk 0:02:18]} 17. g4 {[%clk 0:02:23]}  g5 {[%clk 0:02:09]} 18. Rxd4 {[%clk 0:02:22]}  Qe7 {[%clk 0:02:08]} 19. Rc4 {[%clk 0:02:18]}  b5 {[%clk 0:02:03]} 20. Rc3 {[%clk 0:02:10]}  a5 {[%clk 0:02:00]} 21. Qc2 {[%clk 0:02:09]}  Rc8 {[%clk 0:01:59]} 22. Rc1 {[%clk 0:02:09]}  Kd8 {[%clk 0:01:57]} 23. d4 {[%clk 0:02:05]}  f6 {[%clk 0:01:54]} 24. Qd2 {[%clk 0:02:04]}  b4 {[%clk 0:01:50]} 25. R3c2 {[%clk 0:02:02]}  Rh7 {[%clk 0:01:43]} 26. f4 {[%clk 0:01:59]}  gxf4 {[%clk 0:01:43]} 27. Qxf4 {[%clk 0:01:58]}  Qg7 {[%clk 0:01:08]} 28. Kh1 {[%clk 0:01:56]}  Qg5 {[%clk 0:01:07]} 29. Qf2 {[%clk 0:01:54]}  Re7 {[%clk 0:01:06]} 30. Rf1 {[%clk 0:01:34]}  Rf7 {[%clk 0:01:05]} 31. Qe1 {[%clk 0:01:30]}  Ba6 {[%clk 0:01:04]} 32. Rf5 {[%clk 0:01:29]}  Qg7 {[%clk 0:00:49]} 33. Qxh4 {[%clk 0:01:25]}  a4 {[%clk 0:00:46]} 34. Qe1 {[%clk 0:01:22]}  Rb8 {[%clk 0:00:44]} 35. Rb2 {[%clk 0:01:20]}  b3 {[%clk 0:00:37]} 36. axb3 {[%clk 0:01:20]}  axb3 {[%clk 0:00:38]} 37. Qc3 {[%clk 0:01:18]}  Qh6 {[%clk 0:00:24]} 38. Rxb3 {[%clk 0:01:14]}  Rxb3 {[%clk 0:00:25]} 39. Qxb3 {[%clk 0:01:14]}  Bc8 {[%clk 0:00:26]} 40. Rh5 {[%clk 0:01:13]}  Qc1+ {[%clk 0:00:26]} 41. Kh2 {[%clk 0:01:11]}  Qf4+ {[%clk 0:00:27]} 42. Qg3 {[%clk 0:01:10]}  Qd2 {[%clk 0:00:26]} 43. Rh8+ {[%clk 0:01:08]}  Kd7 {[%clk 0:00:25]} 44. Qf3 {[%clk 0:01:04]}  f5 {[%clk 0:00:20]} 45. e5 {[%clk 0:00:58]}  dxe5 {[%clk 0:00:08]} 46. dxe5 {[%clk 0:00:56]}  Rg7 {[%clk 0:00:00]} 47. Qxf5+ {[%clk 0:00:53]} 1-0

[Event "January 2 Late 2024"]
[Site "https://www.chess.com"]
[Date "2024.01.02"]
[Round "3"]
[White "Bouget, Alexandre"]
[Black "Feuerstack, Aljoscha"]
[Result "0-1"]
[Board "103"]
[TimeControl "180+1"]
[WhiteFideId "681318"]
[BlackFideId "4681932"]
[WhiteElo "2439"]
[BlackElo "2647"]
[WhiteTeam "FRA"]
[BlackTeam "GER"]
[WhiteClock "0:00:17"]
[BlackClock "0:00:17"]

1. d4 {[%clk 0:03:00]}  d5 {[%clk 0:02:59]} 2. Nc3 {[%clk 0:02:58]}  a6 {[%clk 0:02:54]} 3. Bf4 {[%clk 0:02:57]}  c5 {[%clk 0:02:45]} 4. Nf3 {[%clk 0:02:51]}  Nf6 {[%clk 0:02:37]} 5. dxc5 {[%clk 0:02:48]}  Qa5 {[%clk 0:02:27]} 6. e3 {[%clk 0:02:35]}  Bg4 {[%clk 0:02:19]} 7. Be2 {[%clk 0:02:31]}  e6 {[%clk 0:02:16]} 8. a3 {[%clk 0:02:19]}  Qxc5 {[%clk 0:02:10]} 9. O-O {[%clk 0:02:15]}  Nbd7 {[%clk 0:02:00]} 10. h3 {[%clk 0:02:06]}  Bxf3 {[%clk 0:01:58]} 11. Bxf3 {[%clk 0:02:05]}  Qc6 {[%clk 0:01:13]} 12. Ne2 {[%clk 0:02:00]}  e5 {[%clk 0:01:11]} 13. Bh2 {[%clk 0:01:58]}  Rc8 {[%clk 0:01:11]} 14. Rc1 {[%clk 0:01:55]}  Qe6 {[%clk 0:00:54]} 15. c4 {[%clk 0:01:49]}  Rxc4 {[%clk 0:00:37]} 16. Rxc4 {[%clk 0:01:28]}  dxc4 {[%clk 0:00:38]} 17. Bxb7 {[%clk 0:01:28]}  Nc5 {[%clk 0:00:38]} 18. Bf3 {[%clk 0:01:19]}  Be7 {[%clk 0:00:39]} 19. Nc3 {[%clk 0:01:11]}  O-O {[%clk 0:00:38]} 20. Nd5 {[%clk 0:01:10]}  Rd8 {[%clk 0:00:34]} 21. Nxe7+ {[%clk 0:01:07]}  Qxe7 {[%clk 0:00:35]} 22. Qc2 {[%clk 0:01:06]}  Qe6 {[%clk 0:00:34]} 23. Rd1 {[%clk 0:01:04]}  Rxd1+ {[%clk 0:00:32]} 24. Qxd1 {[%clk 0:01:01]}  Nd3 {[%clk 0:00:31]} 25. b3 {[%clk 0:00:52]}  e4 {[%clk 0:00:31]} 26. Be2 {[%clk 0:00:49]}  cxb3 {[%clk 0:00:28]} 27. Bxd3 {[%clk 0:00:50]}  exd3 {[%clk 0:00:28]} 28. Qxd3 {[%clk 0:00:50]}  h6 {[%clk 0:00:22]} 29. Bd6 {[%clk 0:00:35]}  Qd5 {[%clk 0:00:13]} 30. Qxd5 {[%clk 0:00:22]}  Nxd5 {[%clk 0:00:14]} 31. Be5 {[%clk 0:00:22]}  Nb6 {[%clk 0:00:14]} 32. Kf1 {[%clk 0:00:18]}  Nc4 {[%clk 0:00:15]} 33. Bc3 {[%clk 0:00:18]}  b2 {[%clk 0:00:11]} 34. Bxb2 {[%clk 0:00:18]}  Nxb2 {[%clk 0:00:11]} 35. Ke2 {[%clk 0:00:18]}  Nc4 {[%clk 0:00:12]} 36. a4 {[%clk 0:00:17]}  Nb2 {[%clk 0:00:13]} 37. a5 {[%clk 0:00:17]}  Nc4 {[%clk 0:00:14]} 38. Kd3 {[%clk 0:00:18]}  Nxa5 {[%clk 0:00:14]} 39. Kc3 {[%clk 0:00:19]}  Nb7 {[%clk 0:00:15]} 40. Kb4 {[%clk 0:00:20]}  Kf8 {[%clk 0:00:15]} 41. e4 {[%clk 0:00:19]}  Ke7 {[%clk 0:00:16]} 42. f4 {[%clk 0:00:20]}  Kd6 {[%clk 0:00:16]} 43. g4 {[%clk 0:00:20]}  Kc6 {[%clk 0:00:17]} 44. h4 {[%clk 0:00:20]}  Kd6 {[%clk 0:00:17]} 45. g5 {[%clk 0:00:20]}  hxg5 {[%clk 0:00:17]} 46. fxg5 {[%clk 0:00:17]}  g6 {[%clk 0:00:17]} 0-1

[Event "January 2 Late 2024"]
[Site "https://www.chess.com"]
[Date "2024.01.02"]
[Round "3"]
[White "Olsen, Filip Boe"]
[Black "Hoeffer, David"]
[Result "1-0"]
[Board "104"]
[TimeControl "180+1"]
[WhiteFideId "1440640"]
[BlackFideId "24606766"]
[WhiteElo "2646"]
[BlackElo "2439"]
[WhiteTeam "DEN"]
[BlackTeam "GER"]
[WhiteClock "0:01:45"]
[BlackClock "0:00:36"]

1. Nf3 {[%clk 0:03:00]}  Nf6 {[%clk 0:02:56]} 2. g3 {[%clk 0:02:59]}  g6 {[%clk 0:02:50]} 3. Bg2 {[%clk 0:02:59]}  Bg7 {[%clk 0:02:51]} 4. O-O {[%clk 0:02:59]}  O-O {[%clk 0:02:52]} 5. c4 {[%clk 0:02:59]}  d6 {[%clk 0:02:52]} 6. d4 {[%clk 0:02:56]}  a6 {[%clk 0:02:53]} 7. Nc3 {[%clk 0:02:56]}  Nc6 {[%clk 0:02:53]} 8. Bg5 {[%clk 0:02:39]}  h6 {[%clk 0:02:49]} 9. Bf4 {[%clk 0:02:32]}  g5 {[%clk 0:02:38]} 10. Be3 {[%clk 0:02:26]}  Bf5 {[%clk 0:02:38]} 11. h4 {[%clk 0:02:21]}  g4 {[%clk 0:02:35]} 12. Ne1 {[%clk 0:02:18]}  h5 {[%clk 0:02:35]} 13. Nd3 {[%clk 0:02:17]}  e5 {[%clk 0:02:31]} 14. dxe5 {[%clk 0:02:16]}  Nxe5 {[%clk 0:02:29]} 15. Nxe5 {[%clk 0:02:16]}  dxe5 {[%clk 0:02:30]} 16. Bxb7 {[%clk 0:02:11]}  Rb8 {[%clk 0:02:29]} 17. Qxd8 {[%clk 0:02:11]}  Rfxd8 {[%clk 0:02:30]} 18. Bxa6 {[%clk 0:02:10]}  Rxb2 {[%clk 0:02:30]} 19. Rfd1 {[%clk 0:02:10]}  Ra8 {[%clk 0:02:12]} 20. Bb5 {[%clk 0:02:09]}  Ne4 {[%clk 0:02:06]} 21. Nd5 {[%clk 0:02:00]}  Bh7 {[%clk 0:01:35]} 22. Nxc7 {[%clk 0:01:58]}  Raxa2 {[%clk 0:01:29]} 23. Rxa2 {[%clk 0:01:58]}  Rxa2 {[%clk 0:01:30]} 24. Rd8+ {[%clk 0:01:58]}  Bf8 {[%clk 0:01:30]} 25. Bh6 {[%clk 0:01:58]}  Bg6 {[%clk 0:01:21]} 26. Rxf8+ {[%clk 0:01:57]}  Kh7 {[%clk 0:01:21]} 27. Be3 {[%clk 0:01:56]}  Rxe2 {[%clk 0:01:16]} 28. Nd5 {[%clk 0:01:56]}  f5 {[%clk 0:01:06]} 29. Bd7 {[%clk 0:01:50]}  f4 {[%clk 0:00:49]} 30. gxf4 {[%clk 0:01:49]}  exf4 {[%clk 0:00:50]} 31. Nxf4 {[%clk 0:01:48]}  Re1+ {[%clk 0:00:50]} 32. Kg2 {[%clk 0:01:47]}  g3 {[%clk 0:00:49]} 33. Nxg6 {[%clk 0:01:46]}  gxf2 {[%clk 0:00:49]} 34. Bxf2 {[%clk 0:01:46]}  Nxf2 {[%clk 0:00:43]} 35. Kxf2 {[%clk 0:01:46]}  Re4 {[%clk 0:00:42]} 36. Nf4 {[%clk 0:01:46]}  Rxc4 {[%clk 0:00:42]} 37. Bf5+ {[%clk 0:01:46]}  Kg7 {[%clk 0:00:42]} 38. Ne6+ {[%clk 0:01:45]}  Kh6 {[%clk 0:00:36]} 39. Rf6# {[%clk 0:01:45]} 1-0

[Event "January 2 Late 2024"]
[Site "https://www.chess.com"]
[Date "2024.01.02"]
[Round "3"]
[White "Salman, Ilhan Serhat"]
[Black "Atanasov, Anthony"]
[Result "0-1"]
[Board "105"]
[TimeControl "180+1"]
[WhiteFideId "6361579"]
[BlackFideId "2623897"]
[WhiteElo "2438"]
[BlackElo "2644"]
[WhiteTeam "TUR"]
[BlackTeam "CAN"]
[WhiteClock "0:01:06"]
[BlackClock "0:01:14"]

1. c4 {[%clk 0:02:59]}  Nf6 {[%clk 0:02:56]} 2. Nf3 {[%clk 0:02:56]}  g6 {[%clk 0:02:56]} 3. b3 {[%clk 0:02:56]}  Bg7 {[%clk 0:02:56]} 4. Bb2 {[%clk 0:02:57]}  O-O {[%clk 0:02:57]} 5. g3 {[%clk 0:02:57]}  b6 {[%clk 0:02:56]} 6. Bg2 {[%clk 0:02:57]}  Bb7 {[%clk 0:02:57]} 7. O-O {[%clk 0:02:58]}  d6 {[%clk 0:02:57]} 8. Nc3 {[%clk 0:02:58]}  Nbd7 {[%clk 0:02:58]} 9. d4 {[%clk 0:02:58]}  e6 {[%clk 0:02:57]} 10. Qd2 {[%clk 0:02:57]}  Qe7 {[%clk 0:02:57]} 11. Rad1 {[%clk 0:02:57]}  Ne4 {[%clk 0:02:56]} 12. Nxe4 {[%clk 0:02:57]}  Bxe4 {[%clk 0:02:57]} 13. Nh4 {[%clk 0:02:52]}  Bxg2 {[%clk 0:02:55]} 14. Nxg2 {[%clk 0:02:53]}  a5 {[%clk 0:02:52]} 15. a4 {[%clk 0:02:51]}  d5 {[%clk 0:02:45]} 16. Qc2 {[%clk 0:02:46]}  c6 {[%clk 0:02:43]} 17. e4 {[%clk 0:02:45]}  Rac8 {[%clk 0:02:40]} 18. Ne3 {[%clk 0:02:43]}  f5 {[%clk 0:02:37]} 19. e5 {[%clk 0:02:36]}  Bh6 {[%clk 0:02:32]} 20. f4 {[%clk 0:02:35]}  Nb8 {[%clk 0:02:28]} 21. Qc1 {[%clk 0:02:27]}  Na6 {[%clk 0:02:28]} 22. Ba3 {[%clk 0:02:26]}  Nb4 {[%clk 0:02:26]} 23. Nc2 {[%clk 0:02:25]}  Rfd8 {[%clk 0:02:18]} 24. Nxb4 {[%clk 0:02:25]}  axb4 {[%clk 0:02:19]} 25. Bb2 {[%clk 0:02:24]}  Qb7 {[%clk 0:02:16]} 26. Rf2 {[%clk 0:02:23]}  Bf8 {[%clk 0:02:14]} 27. Rc2 {[%clk 0:02:22]}  c5 {[%clk 0:02:03]} 28. dxc5 {[%clk 0:02:17]}  Bxc5+ {[%clk 0:01:46]} 29. Bd4 {[%clk 0:02:17]}  dxc4 {[%clk 0:01:46]} 30. Bxc5 {[%clk 0:02:16]}  Rxd1+ {[%clk 0:01:45]} 31. Qxd1 {[%clk 0:02:15]}  cxb3 {[%clk 0:01:46]} 32. Rd2 {[%clk 0:02:11]}  bxc5 {[%clk 0:01:39]} 33. Qxb3 {[%clk 0:02:10]}  c4 {[%clk 0:01:32]} 34. Qd1 {[%clk 0:02:10]}  c3 {[%clk 0:01:25]} 35. Rd8+ {[%clk 0:02:09]}  Rxd8 {[%clk 0:01:19]} 36. Qxd8+ {[%clk 0:02:10]}  Kf7 {[%clk 0:01:14]} 37. Qf6+ {[%clk 0:02:09]}  Ke8 {[%clk 0:01:15]} 38. Qxe6+ {[%clk 0:02:03]}  Kd8 {[%clk 0:01:15]} 39. Qd6+ {[%clk 0:01:47]}  Ke8 {[%clk 0:01:16]} 40. Qe6+ {[%clk 0:01:45]}  Qe7 {[%clk 0:01:17]} 41. Qg8+ {[%clk 0:01:42]}  Kd7 {[%clk 0:01:17]} 42. Qd5+ {[%clk 0:01:41]}  Kc7 {[%clk 0:01:17]} 43. Qc4+ {[%clk 0:01:40]}  Kb8 {[%clk 0:01:16]} 44. Qb5+ {[%clk 0:01:36]}  Qb7 {[%clk 0:01:16]} 45. Qc5 {[%clk 0:01:06]}  Qa7 {[%clk 0:01:14]} 0-1

[Event "January 2 Late 2024"]
[Site "https://www.chess.com"]
[Date "2024.01.02"]
[Round "3"]
[White "Ozates, Tuna"]
[Black "Urbina Perez, Juan Antonio"]
[Result "1-0"]
[Board "106"]
[TimeControl "180+1"]
[WhiteFideId "6354521"]
[BlackFideId "2217368"]
[WhiteElo "2643"]
[BlackElo "2437"]
[WhiteTeam "TUR"]
[BlackTeam "ESP"]
[WhiteClock "0:00:04"]
[BlackClock "0:00:00"]

1. c4 {[%clk 0:03:00]}  e5 {[%clk 0:02:58]} 2. g3 {[%clk 0:02:59]}  Nf6 {[%clk 0:02:57]} 3. Bg2 {[%clk 0:03:00]}  c6 {[%clk 0:02:58]} 4. Nf3 {[%clk 0:02:49]}  e4 {[%clk 0:02:52]} 5. Nd4 {[%clk 0:02:48]}  d5 {[%clk 0:02:52]} 6. cxd5 {[%clk 0:02:48]}  cxd5 {[%clk 0:02:53]} 7. O-O {[%clk 0:02:48]}  Bc5 {[%clk 0:02:45]} 8. Nb3 {[%clk 0:02:47]}  Bb6 {[%clk 0:02:43]} 9. d3 {[%clk 0:02:48]}  O-O {[%clk 0:02:42]} 10. Nc3 {[%clk 0:02:48]}  Bf5 {[%clk 0:02:37]} 11. Bg5 {[%clk 0:02:47]}  exd3 {[%clk 0:02:36]} 12. Nxd5 {[%clk 0:02:38]}  Nbd7 {[%clk 0:02:24]} 13. exd3 {[%clk 0:02:33]}  h6 {[%clk 0:02:21]} 14. Be3 {[%clk 0:02:04]}  Nxd5 {[%clk 0:02:10]} 15. Bxd5 {[%clk 0:02:03]}  Nf6 {[%clk 0:02:09]} 16. Bxb7 {[%clk 0:01:59]}  Rb8 {[%clk 0:02:07]} 17. Bg2 {[%clk 0:01:48]}  Qxd3 {[%clk 0:01:56]} 18. Qxd3 {[%clk 0:01:42]}  Bxd3 {[%clk 0:01:56]} 19. Rfe1 {[%clk 0:01:40]}  Bc4 {[%clk 0:01:46]} 20. Nd2 {[%clk 0:01:35]}  Be6 {[%clk 0:01:38]} 21. b3 {[%clk 0:01:26]}  Rfd8 {[%clk 0:01:33]} 22. Ne4 {[%clk 0:01:26]}  Nxe4 {[%clk 0:01:30]} 23. Bxe4 {[%clk 0:01:25]}  Bxe3 {[%clk 0:01:30]} 24. Rxe3 {[%clk 0:01:26]}  Rd2 {[%clk 0:01:29]} 25. Rd3 {[%clk 0:01:06]}  Rb2 {[%clk 0:01:23]} 26. Bd5 {[%clk 0:01:03]}  Bf5 {[%clk 0:01:03]} 27. Rc3 {[%clk 0:00:54]}  g5 {[%clk 0:00:54]} 28. Rc7 {[%clk 0:00:53]}  Bg6 {[%clk 0:00:51]} 29. Rxa7 {[%clk 0:00:53]}  Rd8 {[%clk 0:00:51]} 30. Rd1 {[%clk 0:00:52]}  Kg7 {[%clk 0:00:49]} 31. Ra5 {[%clk 0:00:20]}  Rc8 {[%clk 0:00:41]} 32. Bc4 {[%clk 0:00:19]}  Rc7 {[%clk 0:00:38]} 33. Ra8 {[%clk 0:00:14]}  Be4 {[%clk 0:00:37]} 34. Re8 {[%clk 0:00:13]}  Bf3 {[%clk 0:00:36]} 35. Ra1 {[%clk 0:00:12]}  g4 {[%clk 0:00:36]} 36. Ree1 {[%clk 0:00:12]}  Rd7 {[%clk 0:00:35]} 37. a4 {[%clk 0:00:11]}  Rdd2 {[%clk 0:00:35]} 38. Rf1 {[%clk 0:00:11]}  h5 {[%clk 0:00:14]} 39. a5 {[%clk 0:00:11]}  Ba8 {[%clk 0:00:14]} 40. a6 {[%clk 0:00:11]}  f5 {[%clk 0:00:13]} 41. a7 {[%clk 0:00:11]}  Kf6 {[%clk 0:00:13]} 42. Ra6+ {[%clk 0:00:11]}  Kg5 {[%clk 0:00:13]} 43. Bf7 {[%clk 0:00:07]}  f4 {[%clk 0:00:07]} 44. Ra5+ {[%clk 0:00:06]}  Kf6 {[%clk 0:00:06]} 45. Bxh5 {[%clk 0:00:06]}  fxg3 {[%clk 0:00:05]} 46. hxg3 {[%clk 0:00:05]}  Rd3 {[%clk 0:00:02]} 47. Bxg4 {[%clk 0:00:05]}  Kg7 {[%clk 0:00:00]} 48. Bh3 {[%clk 0:00:04]} 1-0